Cogmind - Beta 12 @@@ ROGUE MODE // 2023.03.12 @ 23:24:45 Player: dhtilly Result: Destroyed by as-44153 with Assembled Heavy Rifle Performance ------------- Evolutions (0) 0 Regions Visited (2) 400 Robots Destroyed (11) 55 Value Destroyed (224) 224 Prototype IDs (2) 40 Alien Tech Used (0) 0 Bonus (0) 0 TOTAL SCORE: 719 Bonus ------- None Cogmind --------- Core Integrity 0/250 Matter 237/300 Energy 100/100 System Corruption 1% Temperature Cool (0) Movement Core (700) Ox13 Location -10/Mines Parts ------- > --- POWER (1) -------- (None) > --- PROPULSION (2) --- (None) > --- UTILITY (2) ------ High-capacity Storage Unit > --- WEAPON (2) ------- Assault Rifle > --- INVENTORY (20) --- Ion Engine Light Treads Light Treads Compact Wheel Medium Storage Unit Small Laser Assault Rifle Peak State ------------ > --- POWER ------------ Ion Engine > --- PROPULSION ------- Wheel Compact Wheel > --- UTILITY ---------- Small Storage Unit Medium Storage Unit > --- WEAPON ----------- Small Laser Assault Rifle > --- INVENTORY -------- Ion Engine Light Ion Engine Light Treads Light Treads Compact Wheel Medium Storage Unit Small Laser Assault Rifle Assault Rifle Grenade Launcher [Rating: 8] Favorites ----------- Power Ion Engine Engine Ion Engine Propulsion Compact Wheel Wheel Compact Wheel Utility Small Storage Unit Storage Small Storage Unit Weapon Assault Rifle Energy Gun Small Laser Ballistic Gun Assault Rifle Launcher Grenade Launcher Build | -11 -10 -10 ------- Run | Jun Mat Min Slots Evolved . | . . . Power . | . . . Propulsion . | . . . Utility . | . . . Weapon . | . . . Parts Attached 16 | 6 6 4 Power 2 | 1 1 . Engine 2 | 1 1 . Core . | . . . Reactor . | . . . Propulsion 3 | 2 . 1 Treads . | . . . Leg . | . . . Wheel 3 | 2 . 1 Hover . | . . . Flight . | . . . Utility 5 | 1 4 . Device . | . . . Storage 5 | 1 4 . Processor . | . . . Hackware . | . . . Protection . | . . . Artifact . | . . . Weapon 6 | 2 1 3 Energy Gun 2 | 1 . 1 Energy Cannon . | . . . Ballistic Gun 3 | 1 1 1 Ballistic Cannon . | . . . Launcher 1 | . . 1 Special Weapon . | . . . Impact Weapon . | . . . Slashing Weapon . | . . . Piercing Weapon . | . . . Special Melee Weapon . | . . . Unidentified Prototypes . | . . . Parts Lost 8 | . 1 7 Power 2 | . 1 1 Propulsion 3 | . . 3 Utility . | . . . Weapon 3 | . . 3 Highest Loss Streak 5 | . 1 5 To Critical Strikes . | . . . Average Slot Usage (%) 83 | . 87 50 Engine 12 | . 13 4 Wheel 26 | . 28 15 Storage 16 | . 16 14 Energy Gun 12 | . 14 3 Ballistic Gun 13 | . 14 7 Naked Turns . | . . . Heaviest Build 58 | 11 58 50 Greatest Support 26 | 26 26 26 Greatest Overweight (x) 3 | 2 2 3 Average Overweight (x) . | . . 1 Largest Inventory Capacity 20 | 8 20 20 Average Capacity 11 | 7 10 20 Most Carried 11 | 4 11 10 Average Carried 8 | 2 8 8 Final Capacity 20 | 8 20 20 Final Carried 10 | 4 10 7 Class Distribution -------------------- 100% | Mutant Dominant Class ---------------- Mutant | -10/Materials Mutant | -10/Mines Resources | -11 -10 -10 ----------- Run | Jun Mat Min Matter Collected 419 | 197 222 . Remotely . | . . . Salvage Created 387 | . 364 23 Parts 20 | . 17 3 Haulers Intercepted 2 | . 2 . Recyclers Shooed . | . . . Parts Field Recycled . | . . . Retrieved Matter . | . . . Parts Self-Destructed . | . . . Prevented . | . . . Kills | -11 -10 -10 ------- Run | Jun Mat Min Combat Hostiles Destroyed 12 | . 8 4 Guns 9 | . 8 1 AOE 3 | . . 3 Classes Destroyed 5 | . 3 2 Tunneler 1 | . . 1 Hauler 2 | . 2 . Swarmer 3 | . 3 . Grunt 5 | . 5 . Assembled 4 | . . 4 Best Kill Streak 4 | . 4 4 Combat Bots Only 4 | . 4 3 Max Kills in Single Turn 2 | . 1 2 Gunslinging . | . . . Exploded 2 | . . 2 Melee . | . . . Uniques/NPCs Destroyed . | . . . Combat | -11 -10 -10 -------- Run | Jun Mat Min Damage Taken 868 | . 340 528 Core 256 | . 64 192 Absorbed by Shields . | . . . Core Remaining (%) 100 | 100 . . Volleys Fired 47 | . 38 9 Largest 2 | . 2 2 Hottest 60 | . 60 60 Shots Fired 88 | . 75 13 Gun 85 | . 75 10 Cannon . | . . . Launcher 3 | . . 3 Special . | . . . Kinetic 44 | . 38 6 Thermal 41 | . 37 4 Explosive 3 | . . 3 Electromagnetic . | . . . Robot Hit Streak 11 | . 11 4 Robot Miss Streak 4 | . 4 4 Penetration Max . | . . . Secondary Targets . | . . . Shots Hit Robots 49 | . 44 5 Core Hits 25 | . 19 6 Critical Kills . | . . . Critical Parts Destroyed . | . . . Critical Strikes . | . . . Melee Attacks . | . . . Impact . | . . . Slashing . | . . . Piercing . | . . . Sneak Attacks . | . . . Combat Hostiles . | . . . Follow-up Attacks . | . . . Damage Inflicted 817 | . 523 294 Guns 578 | . 523 55 Cannons . | . . . Explosions 239 | . . 239 Melee . | . . . Ramming . | . . . Kinetic 279 | . 224 55 Thermal 299 | . 299 . Explosive 239 | . . 239 Electromagnetic . | . . . Impact . | . . . Slashing . | . . . Piercing . | . . . Highest Corruption 1 | . . 1 Average Corruption 1 | . . 1 Corruption Purged . | . . . Corruption Blocked . | . . . Overload Shots . | . . . Overflow Damage 32 | . . 32 Projectiles . | . . . Explosions 32 | . . 32 Melee . | . . . Knockbacks . | . . . Impact . | . . . Kinetic . | . . . Secondary . | . . . Self-Inflicted Damage 32 | . . 32 Shots 2 | . . 2 Rammed . | . . . Targets Rammed . | . . . Kicked . | . . . Crushed . | . . . Highest Temperature 81 | . 81 . Average Temperature 26 | . 26 . Received Heat Transfer 149 | . 129 20 Siege Activations . | . . . Robots Corrupted . | . . . Combat Hostiles . | . . . Parts Fried . | . . . Impact Corruptions . | . . . Robots Melted . | . . . Combat Hostiles . | . . . Parts Melted . | . . . Heat Transferred 675 | . 675 . Parts Sabotaged . | . . . Parts Stolen . | . . . Parts Stripped . | . . . Power Chain Reactions . | . . . Missiles Intercepted . | . . . Alert | -11 -10 -10 ------- Run | Jun Mat Min Peak Influence 177 | . 177 30 Initial 16 | . . 16 Average 52 | . 61 5 Maximum Alert Level . | . . . Low Security (%) 100 | 100 100 100 Level 1 . | . . . Level 2 . | . . . Level 3 . | . . . Level 4 . | . . . Level 5 . | . . . High Security . | . . . Max Security . | . . . Squads Dispatched 1 | . 1 . Investigation . | . . . Extermination . | . . . Reinforcement 1 | . 1 . Assault . | . . . Garrison . | . . . Intercept . | . . . Searches Triggered . | . . . Construction Impeded . | . . . Haulers Reinforced . | . . . Active Scanning Responses . | . . . Cargo Convoy Interrupts . | . . . Stealth | -11 -10 -10 --------- Run | Jun Mat Min Distress Signals 3 | . 3 . Communications Jammed . | . . . Distress Signals . | . . . Times Spotted 40 | . 18 22 Peak Tracking Total 16 | . 5 16 Tactical Retreats 2 | . 1 1 Traps | -11 -10 -10 ------- Run | Jun Mat Min Traps Triggered . | . . . Indirectly . | . . . Trap Hack Attempts . | . . . Triggered . | . . . Disarmed . | . . . Reprogrammed . | . . . Reused . | . . . Traps Extracted . | . . . Installed . | . . . Triggered . | . . . Machines | -11 -10 -10 ---------- Run | Jun Mat Min Machines Disabled . | . . . Max in Single Turn . | . . . Machines Repaired . | . . . Machines Sabotaged . | . . . Overloaded Fab Kills . | . . . Hacking | -11 -10 -10 --------- Run | Jun Mat Min Machines Accessed 7 | . 7 . Terminals 7 | . 7 . Fabricators . | . . . Repair Stations . | . . . Recycling Units . | . . . Scanalyzers . | . . . Garrison Access . | . . . Total Hacks 31 | . 31 . Successful 19 | . 19 . Failed 12 | . 12 . Catastrophic 1 | . 1 . Database Lockouts . | . . . Manual 14 | . 14 . Terminals 31 | . 31 . Fabricators . | . . . Repair Stations . | . . . Recycling Units . | . . . Scanalyzers . | . . . Garrison Access . | . . . Terminal Hacks 12 | . 12 . Prototype ID Bank 1 | . 1 . Emergency Access Points 1 | . 1 . Terminal Index 1 | . 1 . Alert Level 2 | . 2 . Locate Traps 1 | . 1 . Reinforcement Status 1 | . 1 . Hauler Manifests 3 | . 3 . Registered Components 1 | . 1 . Zone Layout 1 | . 1 . Fabricator Hacks . | . . . Repair Station Hacks . | . . . Recycling Unit Hacks . | . . . Scanalyzer . | . . . Garrison Access Hacks . | . . . Unauthorized Hacks 7 | . 7 . Terminals 7 | . 7 . Botnet 7 | . 7 . Fabricators . | . . . Repair Stations . | . . . Recycling Units . | . . . Scanalyzers . | . . . Garrison Access . | . . . Data Cores Recovered . | . . . Used . | . . . Hacking Detections 7 | . 7 . Full Trace Events 1 | . 1 . Feedback Events . | . . . Feedback Blocked . | . . . Robot Schematics Acquired . | . . . Robots Built . | . . . Authchips . | . . . Time . | . . . Total Robot Build Rating . | . . . Part Schematics Acquired . | . . . Parts Built . | . . . Authchips . | . . . Time . | . . . Total Part Build Rating . | . . . Parts Repaired . | . . . Time . | . . . Parts Recycled . | . . . Recycled Matter . | . . . Retrieved Matter . | . . . Retrieved Components . | . . . Parts Scanalyzed . | . . . Part Schematics Acquired . | . . . Parts Damaged . | . . . Bothacking | -11 -10 -10 ------------ Run | Jun Mat Min Used RIF Installer . | . . . Robots Hacked . | . . . Non-combat . | . . . Combat . | . . . Robot Hacks Applied . | . . . Relay Couplers Released . | . . . Fabnet Peak Effective % . | . . . Robots Rewired . | . . . Allies Hacked . | . . . Hacks Repelled . | . . . Allies | -11 -10 -10 -------- Run | Jun Mat Min Total Allies . | . . . Largest Group . | . . . Highest-Rated Group . | . . . Highest-Rated Ally . | . . . Total Orders . | . . . Ally Attacks . | . . . Total Damage . | . . . Kills . | . . . Allies Corrupted . | . . . Allies Melted . | . . . Intel | -11 -10 -10 ------- Run | Jun Mat Min Robot Analysis Total . | . . . Derelict Logs Recovered 1 | . . 1 Drone Launches . | . . . Drone Recoveries . | . . . Exploration | -11 -10 -10 ------------- Run | Jun Mat Min Turns Passed 984 | 53 840 91 Spaces Moved 798 | 42 704 52 Core 8 | 8 . . Treads . | . . . Legs . | . . . Wheels 790 | 34 704 52 Hover . | . . . Flight . | . . . Fastest Speed 50 | 50 90 105 Average Speed 96 | 96 94 123 Slowest Speed 150 | 150 120 145 Overloaded Moves . | . . . Propulsion Burnouts . | . . . Robots Hopped . | . . . Cave-ins Triggered . | . . . Exploration Rate (%) 42 | 3 94 31 Regions Visited 2 Branch Regions 1 Pre-discovered Areas . | . . . Known Exits Taken . | . . . Unknown Exits Taken 2 | 1 1 . Scrap Searched . | . . . Spaces Dug . | . . . Terrain Destroyed 22 | . . 22 Melee . | . . . Projectile . | . . . AOE 22 | . . 22 Terrain Rammed . | . . . Walls Destroyed . | . . . Machines Disabled . | . . . Actions | -11 -10 -10 --------- Run | Jun Mat Min Total 923 | 51 807 65 Wait 43 | . 43 . Move 796 | 41 703 52 Hop . | . . . Pick Up 12 | 4 8 . Fast Attach 10 | 6 4 . Attach 3 | . . 3 Detach 2 | . 2 . Swap 3 | . 2 1 Drop 7 | . 7 . Fire 47 | . 38 9 Melee . | . . . Ram . | . . . Kick . | . . . Crush . | . . . Escape Stasis . | . . . Rewire . | . . . Trap . | . . . Miscellaneous . | . . . Route ------- -11/Junkyard -10/Materials (discovered 4 exits: [*Mat x3] / [*Min]) -10/Mines History --------- Turn | Location | Event 20 | -11/Junkyard | Discovered new exit (range 16) 54 | -11/Junkyard | Entered Materials 310 | -10/Materials | Build established: Mutant 414 | -10/Materials | Discovered new exit (range 4) 459 | -10/Materials | Discovered new exit (range 14) 617 | -10/Materials | Discovered new exit (range 8) 761 | -10/Materials | Discovered new exit (range 15) 894 | -10/Materials | Entered Mines 895 | -10/Mines | Assembled infested the area 917 | -10/Mines | Core integrity fell below 50% 950 | -10/Mines | Learned Materials emergency access door positions 951 | -10/Mines | Lost 5 parts (1p2n2w) 971 | -10/Mines | Core integrity fell below 20% 985 | -10/Mines | Destroyed by as-44153 with Assembled Heavy Rifle Last Messages --------------- 00925_ D-53 Grenadier destroyed. 00926_ as-59293 destroyed. 00926_ as-89390 destroyed. 00926_ as-43844 destroyed. 00927_ The unstable cave ceiling collapses. 00928_ U-05 Engineer lays Concrete. 00928_ as-54727 destroyed. 00928_ as-29969 destroyed. 00929_ The unstable cave ceiling collapses. 00929_ U-05 Engineer lays Concrete. 00929_ D-53 Grenadier destroyed. 00930_ U-05 Engineer destroyed. 00950_ Acquired derelict log, extracted data. Data stored: Materials emergency access points. 00968_ K-01 Serf collects debris. 00977_ Com. Wheel destroyed. 00978_ as-74794 destroyed. 00978_ K-01 Serf collects debris. 00981_ Sml. Laser destroyed. 00982_ K-01 Serf collects debris. Map ----- +----------------------------------------------------+ | ?????????????????????????????????????????????????? | | ?????????????????????????????????????????????????? | | ?????????????????????????????????????????????????? | | ?????????????????????????????????????????????????? | | ?????????????????????????????????????????????????? | | ?????????????????????????????????????????????????? | | ?????????????????????????????????????????????????? | | ?????????????????????????????????????????????????? | | ?????????????????????????????????????????? ??????? | | ?????????????????????????????????????????# ?????? | | ???????????????????????????????????????## ?????? | | ????????????????????????????????????### ??????? | | ???????????????????????????????????## ???????? | | ???????????????????????????????????# ????????? | | ???????????????????????????????????# #?????????? | | ?????????????????####??????????????# #??????????? | | ????????????????## #?????????????## ##?????????? | | ????????????????# #???????????### #?????????? | | ????????????????# ##?????????## %a #?????????? | | ????????????????# #????????## ##????????? | | ????????????????# #???????## ####?????? | | ????????????????# ######### #### ##????? | | ????????????????# ##??## ##??## | | ????????????????## ##???## #?## | | ?????????????????###### #???## ### | | ??????????????????????## @ ##??## ### | | ???????????????????????## #???# #### | | ????????????????????????# #?## #### | | ????????????????????????## ## # ## | | ?????????????????????????## | | ??????????????????????????# | | | ??????????????????????????## | !% | | ???????????????????????????# =%k % % | | ???????????????????????????# ggk#* = | | ??????????????????????????# #### # | | ??????????????????????????# ##??# ## # # | | ?????????????????????????? #???# #?### # #? | | ??????????????????????????? ##???# ??????## | | ???????????????????????????#????? ???????##### | | ????????????????????????????????? ???????????#### | | ???????????????????????????????? #???????????????? | | ???????????????????????????????? ????????????????? | | ?????????????????????????????????????????????????? | | ?????????????????????????????????????????????????? | | ?????????????????????????????????????????????????? | | ?????????????????????????????????????????????????? | | ?????????????????????????????????????????????????? | | ?????????????????????????????????????????????????? | | ?????????????????????????????????????????????????? | | ?????????????????????????????????????????????????? | +----------------------------------------------------+ Best States ------------- Heat Dissipation 25 Energy Generation 10 Energy Capacity 250 Matter Stores 300 Matter Capacity 300 Sight Range 16 Terrain Scan Density 10 Evasion (%) 44 Item Schematics ----------------- None Robot Schematics ------------------ None Fabricated ------------ Nothing Alien Tech Used ----------------- None Achievements -------------- None Challenges ------------ None Game ------ Seed ShieldAntimatterDetonator Manual? 0 Play Time 00:13:21 Cumulative 90.9 hours Start 2023.03.12 @ 22:55:30 End 2023.03.12 @ 23:24:45 Sessions 1 Manual Loads 0 Difficulty Rogue Special Mode None Game No. 57 Rogue 57 Adventurer 0 Explorer 0 Win Type - Total 0 Types 0/0/0/0/0/0/0/0/0 Lore% 40 Gallery% 50 Achievement% 42 Wizard Run 0 Options --------- ASCII 0 Keyboard 1 Movement Vi Keybinds 0 Fullscreen 1 Font 12/Smallcaps Map View 83x54 Tactical HUD 1 Map Filters NONE Filters NONE Steam 1 RUN: e9ff72e5-43d2-487b-a0db-c26be5f5742a